[Event "DVM U10 2019"]
[Site "Magedburg"]
[Date "2019.12.28"]
[Round "4"]
[White "Ermitsch, Magnus"]
[Black "Klaska, Philipp Leon"]
[Result "1-0"]
[ECO "B43"]
[WhiteElo "1887"]
[BlackElo "1531"]
[Annotator "NA"]
[PlyCount "45"]
[EventDate "2019.12.27"]
[EventType "team-tourn"]
[EventRounds "7"]
[EventCountry "GER"]
[SourceTitle "playchess.com"]
[Source "ChessBase"]
[SourceQuality "1"]
[TimeControl "3300+5"]

1. e4 {[%emt 0:00:52]} c5 {[%emt 0:00:00]} 2. Nf3 {[%emt 0:00:18]} e6 {[%emt 0:00:02]} 3. d4 {[%emt 0:00:20]} cxd4 {[%emt 0:00:05]} 4. Nxd4 {[%emt 0:00:21]} a6 {[%emt 0:00:24]} 5. Nc3 {[%emt 0:01:32]} Qc7 {[%emt 0:00:16]} 6. a3 {[%emt 0:00:39]} b5 {[%emt 0:01:10]} 7. Be3 {[%emt 0:01:27]} Bb7 {[%emt 0:00:17]} 8. Bd3 {[%emt 0:01:39]} Nf6 {[%emt 0:01:16]} 9. O-O {[%emt 0:01:35]} Be7 {[%emt 0:01:44]} 10. f4 {[%emt 0:03:22]} Nc6 {[%emt 0:01:41]} 11. Kh1 {[%emt 0:03:36]} Rc8 {[%emt 0:03:51]} 12. Qe1 {[%emt 0:04:25]} Na5 {[%emt 0:10:03]} 13. Qe2 {[%emt 0:05:17]} Nc4 {[%emt 0:02:37]} 14. Ndxb5 {[%emt 0:01:22]} axb5 {[%emt 0:02:08]} 15. Nxb5 {[%emt 0:00:09]} Qb8 {[%emt 0:04:18]} 16. Bxc4 {[%emt 0:00:43]} Bxe4 {[%emt 0:01:10]} 17. Bd3 {[%emt 0:01:45]} Bxd3 {[%emt 0:03:06]} 18. Qxd3 {[%emt 0:00:40]} Nd5 {[%emt 0:01:26]} 19. Rae1 {[%emt 0:09:58]} O-O {[%emt 0:03:37]} 20. c4 {[%emt 0:00:58]} Nxe3 {[%emt 0:01:37]} 21. Rxe3 {[%emt 0:00:08]} Rfd8 {[%emt 0:02:52]} 22. b4 {[%emt 0:02:37]} Qb6 {[%emt 0:03:14]} 23. Rg3 {[%emt 0:01:27] normal} 1-0

[Event "DVM U10 2019"]
[Site "Magedburg"]
[Date "2019.12.28"]
[Round "4"]
[White "Sauer, Tim"]
[Black "Fietz, Nils"]
[Result "1-0"]
[ECO "A22"]
[WhiteElo "1691"]
[BlackElo "1437"]
[Annotator "NA"]
[PlyCount "51"]
[EventDate "2019.12.27"]
[EventType "team-tourn"]
[EventRounds "7"]
[EventCountry "GER"]
[SourceTitle "playchess.com"]
[Source "ChessBase"]
[SourceQuality "1"]
[TimeControl "3300+5"]

1. c4 {[%emt 0:00:00]} e5 {[%emt 0:00:22]} 2. Nc3 {[%emt 0:00:06]} Nf6 {[%emt 0:00:25]} 3. g3 {[%emt 0:00:07]} c6 {[%emt 0:01:36]} 4. d4 {[%emt 0:00:37]} exd4 {[%emt 0:00:39]} 5. Qxd4 {[%emt 0:00:12]} d5 {[%emt 0:00:34]} 6. Bg5 {[%emt 0:03:21]} Be7 {[%emt 0:01:36]} 7. Bg2 {[%emt 0:00:17]} dxc4 {[%emt 0:00:39]} 8. Qxc4 {[%emt 0:01:05]} Be6 {[%emt 0:01:56]} 9. Qa4 {[%emt 0:00:13]} O-O {[%emt 0:00:30]} 10. Nf3 {[%emt 0:00:27]} Qb6 {[%emt 0:02:20]} 11. Qc2 {[%emt 0:01:25]} Na6 {[%emt 0:02:52]} 12. Rd1 {[%emt 0:09:39]} Nb4 {[%emt 0:01:02]} 13. Qb1 {[%emt 0:02:46]} Qa5 {[%emt 0:06:49]} 14. a3 {[%emt 0:04:05]} Na2 {[%emt 0:03:33]} 15. Bd2 {[%emt 0:00:35]} Nxc3 {[%emt 0:01:19]} 16. Bxc3 {[%emt 0:00:02]} Qb6 {[%emt 0:01:08]} 17. Ng5 {[%emt 0:00:52]} g6 {[%emt 0:05:31]} 18. Nxe6 {[%emt 0:02:02]} fxe6 {[%emt 0:00:32]} 19. O-O {[%emt 0:00:15]} Nd5 {[%emt 0:01:45]} 20. Bd4 {[%emt 0:03:23]} Bc5 {[%emt 0:01:28]} 21. Bxc5 {[%emt 0:01:40]} Qxc5 {[%emt 0:00:34]} 22. b4 {[%emt 0:00:13]} Qb6 {[%emt 0:01:18]} 23. Qe4 {[%emt 0:02:32]} Rae8 {[%emt 0:02:15]} 24. Bh3 {[%emt 0:03:14]} Rf6 {[%emt 0:04:32]} 25. Qe5 {[%emt 0:01:54]} Kf7 {[%emt 0:03:16]} 26. e4 {[%emt 0:00:49] normal} 1-0

[Event "DVM U10 2019"]
[Site "Magedburg"]
[Date "2019.12.28"]
[Round "4"]
[White "Goldmann, David"]
[Black "Haubold, Sebastian Marcel"]
[Result "0-1"]
[ECO "C68"]
[WhiteElo "1594"]
[BlackElo "1613"]
[Annotator "NA"]
[PlyCount "86"]
[EventDate "2019.12.27"]
[EventType "team-tourn"]
[EventRounds "7"]
[EventCountry "GER"]
[SourceTitle "playchess.com"]
[Source "ChessBase"]
[SourceQuality "1"]
[TimeControl "3300+5"]

1. e4 {[%emt 0:00:00]} e5 {[%emt 0:00:04]} 2. Nf3 {[%emt 0:00:03]} Nc6 {[%emt 0:00:09]} 3. Bb5 a6 {[%emt 0:00:15]} 4. Bxc6 {[%emt 0:00:02]} dxc6 {[%emt 0:00:19]} 5. O-O {[%emt 0:00:07]} Bd6 {[%emt 0:00:15]} 6. d4 {[%emt 0:00:06]} Bg4 {[%emt 0:01:52]} 7. dxe5 {[%emt 0:00:06]} Bxf3 {[%emt 0:00:18]} 8. Qxf3 Bxe5 {[%emt 0:00:22]} 9. Qb3 {[%emt 0:00:32]} b6 {[%emt 0:02:42]} 10. c3 {[%emt 0:00:06]} Ne7 {[%emt 0:02:28]} 11. Be3 {[%emt 0:00:13]} Ng6 {[%emt 0:01:35]} 12. Nd2 {[%emt 0:00:38]} O-O {[%emt 0:01:05]} 13. Rad1 {[%emt 0:00:46]} Qe7 {[%emt 0:03:06]} 14. f4 {[%emt 0:00:27]} Bd6 {[%emt 0:00:32]} 15. Qc4 {[%emt 0:00:10]} Qe8 {[%emt 0:04:46]} 16. e5 {[%emt 0:00:58]} Be7 {[%emt 0:01:59]} 17. Qe4 {[%emt 0:00:14]} f5 {[%emt 0:00:30]} 18. Qc4+ {[%emt 0:00:23]} Kh8 {[%emt 0:00:14]} 19. Nb3 {[%emt 0:00:25]} c5 {[%emt 0:01:16]} 20. Qe2 {[%emt 0:01:13]} Qc6 {[%emt 0:02:14]} 21. g3 {[%emt 0:00:25]} a5 {[%emt 0:00:52]} 22. Nc1 {[%emt 0:04:31]} b5 {[%emt 0:02:28]} 23. Qf2 {[%emt 0:00:16]} b4 {[%emt 0:01:16]} 24. c4 {[%emt 0:01:11]} a4 {[%emt 0:01:48]} 25. Qg2 {[%emt 0:00:55]} Qa6 {[%emt 0:01:44]} 26. h4 {[%emt 0:00:54]} Rfd8 27. b3 {[%emt 0:01:30]} axb3 {[%emt 0:02:04]} 28. axb3 Nf8 {[%emt 0:00:29]} 29. Qc2 {[%emt 0:00:33]} Qg6 {[%emt 0:01:00]} 30. Qg2 {[%emt 0:00:33]} Qg4 {[%emt 0:00:39]} 31. Rd3 {[%emt 0:00:29]} Ne6 {[%emt 0:01:08]} 32. Rfd1 {[%emt 0:00:01]} Rxd3 {[%emt 0:01:01]} 33. Qxa8+ {[%emt 0:00:26]} Rd8 {[%emt 0:00:06]} 34. Rxd8+ Nxd8 {[%emt 0:00:15]} 35. Kh2 {[%emt 0:01:50]} Qd1 {[%emt 0:00:45]} 36. Bxc5 {[%emt 0:01:40]} Bxc5 {[%emt 0:00:10]} 37. e6 {[%emt 0:00:59]} Be7 {[%emt 0:00:41]} 38. Qa4 {[%emt 0:02:17]} c6 {[%emt 0:00:12]} 39. Na2 {[%emt 0:01:24]} Qe2+ {[%emt 0:00:26]} 40. Kh3 {[%emt 0:00:09]} Qf1+ {[%emt 0:00:12]} 41. Kh2 {[%emt 0:00:07]} Qf2+ {[%emt 0:00:22]} 42. Kh3 {[%emt 0:00:05]} Qg1 {[%emt 0:00:13]} 43. g4 {[%emt 0:00:16]} fxg4# {[%emt 0:00:11] normal} 0-1

[Event "DVM U10 2019"]
[Site "Magedburg"]
[Date "2019.12.28"]
[Round "4"]
[White "Xue, Luka"]
[Black "Torosyan, Bagrat"]
[Result "1-0"]
[ECO "E92"]
[WhiteElo "1529"]
[BlackElo "1613"]
[Annotator "NA"]
[PlyCount "111"]
[EventDate "2019.12.27"]
[EventType "team-tourn"]
[EventRounds "7"]
[EventCountry "GER"]
[SourceTitle "playchess.com"]
[Source "ChessBase"]
[SourceQuality "1"]
[TimeControl "3300+5"]

1. d4 {[%emt 0:00:00]} Nf6 {[%emt 0:00:00]} 2. c4 {[%emt 0:00:03]} g6 {[%emt 0:00:05]} 3. Nc3 {[%emt 0:00:05]} Bg7 {[%emt 0:00:14]} 4. e4 {[%emt 0:00:18]} d6 {[%emt 0:00:06]} 5. Nf3 {[%emt 0:00:07]} O-O {[%emt 0:00:11]} 6. Be2 {[%emt 0:00:06]} e5 {[%emt 0:00:11]} 7. dxe5 {[%emt 0:00:05]} dxe5 {[%emt 0:00:07]} 8. Qxd8 {[%emt 0:00:07]} Rxd8 {[%emt 0:00:06]} 9. Bg5 {[%emt 0:00:09]} c6 {[%emt 0:00:10]} 10. O-O {[%emt 0:00:17]} Bg4 {[%emt 0:00:23]} 11. Rad1 {[%emt 0:00:56]} Nbd7 {[%emt 0:00:14]} 12. h3 {[%emt 0:00:33]} Bxf3 {[%emt 0:00:13]} 13. Bxf3 {[%emt 0:00:14]} h6 {[%emt 0:00:06]} 14. Be3 {[%emt 0:00:27]} Bf8 {[%emt 0:00:26]} 15. Rd2 {[%emt 0:01:07]} Nc5 {[%emt 0:00:11]} 16. Rfd1 {[%emt 0:00:33]} Rxd2 {[%emt 0:00:17]} 17. Rxd2 {[%emt 0:00:09]} h5 {[%emt 0:00:37]} 18. Bg5 {[%emt 0:01:00]} Kg7 {[%emt 0:00:42]} 19. a3 {[%emt 0:03:25]} Nb3 {[%emt 0:01:03]} 20. Rd3 {[%emt 0:00:42]} Nd4 {[%emt 0:00:21]} 21. Ne2 {[%emt 0:00:28]} Nxf3+ {[%emt 0:01:13]} 22. gxf3 {[%emt 0:00:55]} a5 {[%emt 0:02:11]} 23. Nc1 {[%emt 0:01:13]} b5 {[%emt 0:00:38]} 24. cxb5 {[%emt 0:01:22]} cxb5 {[%emt 0:00:26]} 25. Bxf6+ {[%emt 0:02:02]} Kxf6 {[%emt 0:00:08]} 26. Rd5 {[%emt 0:00:14]} b4 {[%emt 0:00:51]} 27. a4 {[%emt 0:00:51]} b3 {[%emt 0:02:47]} 28. Nd3 {[%emt 0:00:48]} Rc8 {[%emt 0:01:18]} 29. h4 {[%emt 0:01:12]} Rc2 {[%emt 0:01:52]} 30. Rxa5 {[%emt 0:02:20]} Bh6 {[%emt 0:00:38]} 31. Ra6+ {[%emt 0:02:37]} Kg7 {[%emt 0:00:50]} 32. Rb6 {[%emt 0:01:06]} Rc4 {[%emt 0:01:18]} 33. a5 {[%emt 0:01:48]} Ra4 {[%emt 0:00:33]} 34. a6 {[%emt 0:00:41]} Ra1+ {[%emt 0:00:48]} 35. Kg2 {[%emt 0:00:22]} Bf4 {[%emt 0:02:15]} 36. Nc5 {[%emt 0:00:55]} g5 {[%emt 0:00:41]} 37. Nxb3 {[%emt 0:03:36]} Ra2 {[%emt 0:00:22]} 38. Nc5 {[%emt 0:01:09]} gxh4 {[%emt 0:00:31]} 39. Rb7 {[%emt 0:00:26]} Kg6 {[%emt 0:01:56]} 40. Nd3 {[%emt 0:04:46]} Rxa6 {[%emt 0:01:00]} 41. b4 {[%emt 0:02:22]} Ra1 {[%emt 0:00:29]} 42. b5 {[%emt 0:00:21]} Rb1 {[%emt 0:00:07]} 43. b6 {[%emt 0:00:30]} f6 {[%emt 0:00:26]} 44. Nc5 Bc1 {[%emt 0:00:44]} 45. Rb8 {[%emt 0:02:39]} Ba3 {[%emt 0:00:46]} 46. Nd7 {[%emt 0:00:48]} Kg7 {[%emt 0:01:14]} 47. Rb7 {[%emt 0:01:07]} Be7 {[%emt 0:01:37]} 48. Nxe5 {[%emt 0:02:55]} fxe5 {[%emt 0:00:20]} 49. Rxe7+ {[%emt 0:00:08]} Kf6 {[%emt 0:00:11]} 50. Rh7 {[%emt 0:01:20]} Kg6 {[%emt 0:00:15]} 51. Rb7 {[%emt 0:00:08]} Kf6 {[%emt 0:00:33]} 52. Rb8 {[%emt 0:00:56]} Ke7 {[%emt 0:01:36]} 53. b7 {[%emt 0:00:24]} Kd7 {[%emt 0:00:08]} 54. Rh8 Kc7 {[%emt 0:00:50]} 55. b8=Q+ {[%emt 0:00:00] Rb4 Qb7+ Rxb7} Rxb8 {[%emt 0:16:48]} 56. Rxb8 {[%emt 0:01:19] normal Kh3} 1-0

[Event "DVM U10 2019"]
[Site "Magedburg"]
[Date "2019.12.28"]
[Round "4"]
[White "Haubold, Christian Lucas"]
[Black "Wartenberg, Alissa"]
[Result "1/2-1/2"]
[ECO "C50"]
[WhiteElo "1471"]
[BlackElo "1361"]
[Annotator "NA"]
[PlyCount "69"]
[EventDate "2019.12.27"]
[EventType "team-tourn"]
[EventRounds "7"]
[EventCountry "GER"]
[SourceTitle "playchess.com"]
[Source "ChessBase"]
[SourceQuality "1"]
[TimeControl "3300+5"]

1. e4 {[%emt 0:00:00]} e5 {[%emt 0:00:00]} 2. Nf3 {[%emt 0:00:05]} Nc6 {[%emt 0:00:06]} 3. Bc4 {[%emt 0:00:07]} Nf6 {[%emt 0:00:09]} 4. d3 {[%emt 0:00:07]} Bc5 {[%emt 0:00:09]} 5. O-O {[%emt 0:00:06]} d6 {[%emt 0:00:38]} 6. c3 {[%emt 0:00:14]} Bg4 {[%emt 0:00:19]} 7. h3 {[%emt 0:00:15]} Bh5 {[%emt 0:00:10]} 8. Bg5 {[%emt 0:00:42]} Qe7 {[%emt 0:01:11]} 9. Nbd2 {[%emt 0:00:31]} a6 {[%emt 0:00:09]} 10. a4 {[%emt 0:01:04]} Ba7 {[%emt 0:00:51]} 11. Qc2 {[%emt 0:00:44]} h6 {[%emt 0:01:27]} 12. Bh4 {[%emt 0:00:41]} O-O {[%emt 0:01:45]} 13. b4 {[%emt 0:05:24]} Nb8 {[%emt 0:01:38]} 14. Rfe1 {[%emt 0:04:28]} Nbd7 {[%emt 0:01:01]} 15. d4 {[%emt 0:02:30]} Rfe8 {[%emt 0:01:18]} 16. Bd3 {[%emt 0:05:46]} Rad8 {[%emt 0:01:10]} 17. Rab1 {[%emt 0:02:40]} Nf8 {[%emt 0:04:35]} 18. b5 {[%emt 0:03:07]} a5 {[%emt 0:00:25]} 19. Kh2 {[%emt 0:03:07]} Bg6 {[%emt 0:01:03]} 20. Bg3 {[%emt 0:01:12]} exd4 {[%emt 0:02:50]} 21. cxd4 {[%emt 0:00:29]} Bh7 {[%emt 0:01:42]} 22. Rbc1 {[%emt 0:01:10]} Bb6 {[%emt 0:00:25]} 23. Qc3 {[%emt 0:03:21]} Ng6 {[%emt 0:06:57]} 24. Nc4 {[%emt 0:02:23]} Rc8 {[%emt 0:02:12]} 25. Nfd2 {[%emt 0:02:17]} Qd7 {[%emt 0:01:49]} 26. Nxb6 {[%emt 0:01:25]} cxb6 {[%emt 0:00:23]} 27. Qa3 {[%emt 0:00:22]} d5 {[%emt 0:03:24]} 28. e5 {[%emt 0:00:36]} Nh5 {[%emt 0:00:34]} 29. Rf1 {[%emt 0:01:27]} Nhf4 {[%emt 0:01:45]} 30. Bxf4 {[%emt 0:00:27]} Nxf4 {[%emt 0:00:12]} 31. Bxh7+ {[%emt 0:00:08]} Kxh7 {[%emt 0:00:09]} 32. Qf3 {[%emt 0:00:32]} Ne6 {[%emt 0:00:46]} 33. Nb3 {[%emt 0:00:18]} Kg8 {[%emt 0:00:44]} 34. Kh1 {[%emt 0:00:34]} Ng5 {[%emt 0:01:07]} 35. Qe2 {[%emt 0:01:01] normal} 1/2-1/2

[Event "DVM U10 2019"]
[Site "Magedburg"]
[Date "2019.12.28"]
[Round "4"]
[White "Zobel, Christian"]
[Black "Dordevic, Tom"]
[Result "1-0"]
[ECO "B20"]
[WhiteElo "1450"]
[BlackElo "1346"]
[Annotator "NA"]
[PlyCount "96"]
[EventDate "2019.12.27"]
[EventType "team-tourn"]
[EventRounds "7"]
[EventCountry "GER"]
[SourceTitle "playchess.com"]
[Source "ChessBase"]
[SourceQuality "1"]
[TimeControl "3300+5"]

1. e4 {[%emt 0:00:00]} c5 {[%emt 0:00:01]} 2. Bc4 {[%emt 0:00:03]} e6 {[%emt 0:00:07]} 3. Qe2 {[%emt 0:00:04]} Nc6 {[%emt 0:00:06]} 4. c3 {[%emt 0:00:18]} a6 {[%emt 0:00:10]} 5. Nf3 {[%emt 0:00:16]} d6 {[%emt 0:00:12]} 6. d3 {[%emt 0:00:19]} Nf6 {[%emt 0:00:09]} 7. O-O {[%emt 0:00:13]} Be7 {[%emt 0:00:06]} 8. Nbd2 {[%emt 0:02:17]} O-O {[%emt 0:00:13]} 9. Re1 {[%emt 0:00:38]} b5 {[%emt 0:00:41]} 10. Bb3 {[%emt 0:00:05]} Bb7 {[%emt 0:00:08]} 11. Nf1 {[%emt 0:01:10]} Rc8 {[%emt 0:01:21]} 12. Ng3 {[%emt 0:00:57]} Qd7 {[%emt 0:02:00]} 13. Bf4 {[%emt 0:02:36]} Rfd8 {[%emt 0:01:00]} 14. Rad1 {[%emt 0:06:29]} h6 {[%emt 0:02:51]} 15. d4 {[%emt 0:04:02]} c4 {[%emt 0:00:25]} 16. Bc2 {[%emt 0:00:08]} d5 {[%emt 0:00:14]} 17. e5 {[%emt 0:00:30]} Nh7 {[%emt 0:00:12]} 18. Qd2 {[%emt 0:00:58]} Bf8 {[%emt 0:03:03]} 19. Nh5 {[%emt 0:02:57]} Qe7 {[%emt 0:01:48]} 20. Bxh7+ {[%emt 0:03:18]} Kxh7 {[%emt 0:00:14]} 21. Bxh6 {[%emt 0:00:45]} g6 {[%emt 0:02:56]} 22. Bg5 {[%emt 0:00:16]} Qc7 {[%emt 0:00:11]} 23. Bxd8 {[%emt 0:00:04]} Qxd8 {[%emt 0:00:09]} 24. Nf6+ {[%emt 0:00:05]} Kg7 {[%emt 0:00:25]} 25. h4 {[%emt 0:04:33]} Be7 {[%emt 0:00:41]} 26. Ng4 {[%emt 0:00:25]} Qh8 {[%emt 0:00:33]} 27. g3 {[%emt 0:00:47]} Qh5 {[%emt 0:00:35]} 28. Qf4 {[%emt 0:00:39]} Rh8 {[%emt 0:01:03]} 29. Nf6 {[%emt 0:00:50]} Qf5 {[%emt 0:00:20]} 30. Qxf5 {[%emt 0:00:08]} gxf5 {[%emt 0:00:04]} 31. b3 {[%emt 0:02:40]} cxb3 {[%emt 0:00:42]} 32. axb3 {[%emt 0:00:06]} Bxf6 {[%emt 0:00:06]} 33. exf6+ {[%emt 0:00:04]} Kxf6 {[%emt 0:00:07]} 34. Rb1 {[%emt 0:02:14]} b4 {[%emt 0:00:34]} 35. cxb4 {[%emt 0:00:47]} Nxb4 {[%emt 0:00:19]} 36. Rec1 {[%emt 0:00:17]} Bc6 {[%emt 0:00:26]} 37. Ne5 {[%emt 0:00:37]} Bb5 {[%emt 0:00:11]} 38. Rc7 {[%emt 0:00:32]} Rh7 {[%emt 0:00:18]} 39. Kg2 {[%emt 0:02:45]} Nd3 {[%emt 0:01:04]} 40. Nxd3 {[%emt 0:00:19]} Bxd3 {[%emt 0:00:06]} 41. Rbc1 {[%emt 0:00:45]} f4 {[%emt 0:01:11]} 42. Kf3 {[%emt 0:00:28]} fxg3 {[%emt 0:00:12]} 43. fxg3 {[%emt 0:00:09]} Bb5 {[%emt 0:01:55]} 44. Rh1 {[%emt 0:00:47]} Bd3 {[%emt 0:03:20]} 45. Kf4 {[%emt 0:00:34]} Rh6 {[%emt 0:06:09]} 46. g4 {[%emt 0:00:25]} Kg7 {[%emt 0:00:12]} 47. g5 {[%emt 0:01:58]} Rh5 {[%emt 0:00:12]} 48. Rh2 {[%emt 0:01:17]} Kg6 {[%emt 0:01:05] normal} 1-0

[Event "DVM U10 2019"]
[Site "Magedburg"]
[Date "2019.12.28"]
[Round "4"]
[White "Dorendorf, Mika"]
[Black "Goldschmidt, Jakob"]
[Result "1-0"]
[ECO "A22"]
[WhiteElo "1424"]
[BlackElo "1132"]
[Annotator "NA"]
[PlyCount "85"]
[EventDate "2019.12.27"]
[EventType "team-tourn"]
[EventRounds "7"]
[EventCountry "GER"]
[SourceTitle "playchess.com"]
[Source "ChessBase"]
[SourceQuality "1"]
[TimeControl "3300+5"]

1. c4 {[%emt 0:00:09]} e5 {[%emt 0:00:03]} 2. Nc3 {[%emt 0:00:06]} Nf6 {[%emt 0:00:08]} 3. g3 {[%emt 0:00:05]} Bc5 {[%emt 0:00:17]} 4. a3 {[%emt 0:00:10]} Nc6 {[%emt 0:00:11]} 5. b4 {[%emt 0:00:03]} Bb6 {[%emt 0:00:07]} 6. c5 {[%emt 0:00:05]} Bxc5 {[%emt 0:00:15]} 7. bxc5 {[%emt 0:00:05]} O-O {[%emt 0:00:12]} 8. Bg2 {[%emt 0:00:11]} d6 {[%emt 0:00:36]} 9. cxd6 {[%emt 0:00:17]} cxd6 {[%emt 0:00:14]} 10. d3 {[%emt 0:00:07]} Be6 {[%emt 0:00:19]} 11. Nf3 {[%emt 0:00:20]} Qe7 {[%emt 0:00:24]} 12. Ng5 {[%emt 0:00:14]} Nd4 {[%emt 0:00:33]} 13. Nxe6 {[%emt 0:00:14]} Nxe6 {[%emt 0:00:11]} 14. Nd5 {[%emt 0:00:04]} Nxd5 {[%emt 0:00:14]} 15. Bxd5 {[%emt 0:00:07]} Nd4 {[%emt 0:01:13]} 16. Bb2 {[%emt 0:00:44]} Nb5 {[%emt 0:00:55]} 17. a4 {[%emt 0:00:15]} Nc7 18. Bg2 {[%emt 0:00:10]} Qf6 {[%emt 0:03:28]} 19. O-O {[%emt 0:00:14]} Ne6 {[%emt 0:01:10]} 20. f4 {[%emt 0:00:22]} Qh6 {[%emt 0:00:52]} 21. fxe5 {[%emt 0:00:21]} dxe5 {[%emt 0:00:15]} 22. Qc1 {[%emt 0:00:13]} Qh5 {[%emt 0:00:46]} 23. Bf3 {[%emt 0:00:29]} Qh3 {[%emt 0:00:47]} 24. Bxb7 {[%emt 0:00:12]} Rab8 {[%emt 0:00:25]} 25. Bg2 {[%emt 0:00:12]} Qh5 26. Ba3 Rfc8 {[%emt 0:01:03]} 27. Qd2 {[%emt 0:00:24]} Nd4 {[%emt 0:01:13]} 28. Bf3 {[%emt 0:00:11]} Qh3 {[%emt 0:00:27]} 29. Rac1 {[%emt 0:00:18]} Rxc1 {[%emt 0:00:52]} 30. Rxc1 {[%emt 0:00:25]} h6 {[%emt 0:00:18]} 31. Qe1 {[%emt 0:00:24]} Rf8 {[%emt 0:01:40]} 32. Bxf8 {[%emt 0:00:05]} Kxf8 33. Qb4+ {[%emt 0:00:22]} Kg8 {[%emt 0:00:49]} 34. Qb8+ Kh7 {[%emt 0:00:15]} 35. Qxe5 {[%emt 0:00:15]} Nb3 {[%emt 0:00:51]} 36. Be4+ {[%emt 0:00:10]} g6 {[%emt 0:00:40]} 37. Rf1 {[%emt 0:00:34]} f5 {[%emt 0:00:58]} 38. Qe7+ {[%emt 0:00:17]} Kh8 39. Bd5 h5 {[%emt 0:02:13]} 40. Qf7 {[%emt 0:00:21]} Qxf1+ {[%emt 0:03:00]} 41. Kxf1 {[%emt 0:00:18]} Nd2+ {[%emt 0:00:15]} 42. Kg2 {[%emt 0:00:12]} Nf3 {[%emt 0:00:42]} 43. Qg8# {[%emt 0:00:12] normal} 1-0

[Event "DVM U10 2019"]
[Site "Magedburg"]
[Date "2019.12.28"]
[Round "4"]
[White "Bangiev, Katharina"]
[Black "Wendrich, Finn"]
[Result "1-0"]
[ECO "C42"]
[WhiteElo "1239"]
[BlackElo "1173"]
[Annotator "NA"]
[PlyCount "79"]
[EventDate "2019.12.27"]
[EventType "team-tourn"]
[EventRounds "7"]
[EventCountry "GER"]
[SourceTitle "playchess.com"]
[Source "ChessBase"]
[SourceQuality "1"]
[TimeControl "3300+5"]

1. e4 {[%emt 0:00:00]} e5 {[%emt 0:00:06]} 2. Nf3 {[%emt 0:00:00]} Nf6 {[%emt 0:00:05]} 3. Nxe5 {[%emt 0:00:24]} d6 {[%emt 0:00:12]} 4. Nf3 {[%emt 0:00:12]} Nxe4 {[%emt 0:00:13]} 5. d3 {[%emt 0:00:11]} Nf6 {[%emt 0:00:12]} 6. g3 {[%emt 0:00:16]} Be7 {[%emt 0:00:17]} 7. Bg2 {[%emt 0:00:07]} O-O {[%emt 0:00:38]} 8. O-O {[%emt 0:00:16]} Nc6 {[%emt 0:00:23]} 9. Nc3 {[%emt 0:00:36]} d5 {[%emt 0:00:39]} 10. d4 {[%emt 0:01:01]} Bf5 {[%emt 0:02:21]} 11. Bg5 {[%emt 0:00:52]} Qd7 {[%emt 0:02:08]} 12. Nh4 {[%emt 0:02:23]} Be6 {[%emt 0:02:21]} 13. Bxf6 {[%emt 0:00:51]} Bxf6 {[%emt 0:00:12]} 14. Nf3 {[%emt 0:00:08]} Rfe8 {[%emt 0:02:36]} 15. Re1 {[%emt 0:03:44]} Rac8 {[%emt 0:03:50]} 16. Ne2 {[%emt 0:01:32]} Na5 {[%emt 0:02:46]} 17. Nf4 {[%emt 0:01:15]} c5 {[%emt 0:01:43]} 18. Nxe6 {[%emt 0:01:13]} Rxe6 {[%emt 0:00:24]} 19. Rxe6 {[%emt 0:00:54]} Qxe6 {[%emt 0:00:25]} 20. c3 {[%emt 0:00:51]} b6 {[%emt 0:05:13]} 21. Qe1 {[%emt 0:03:22]} Re8 {[%emt 0:00:58]} 22. Qxe6 {[%emt 0:01:01]} Rxe6 {[%emt 0:00:12]} 23. Re1 {[%emt 0:00:50]} Kf8 {[%emt 0:01:45]} 24. dxc5 {[%emt 0:01:28]} bxc5 {[%emt 0:00:34]} 25. Bh3 {[%emt 0:02:07]} Rxe1+ {[%emt 0:06:06]} 26. Nxe1 {[%emt 0:00:07]} d4 27. b4 {[%emt 0:02:59]} cxb4 {[%emt 0:02:01]} 28. cxb4 {[%emt 0:00:12]} Nc4 {[%emt 0:00:28]} 29. Bf1 {[%emt 0:01:08]} Nb6 {[%emt 0:00:38]} 30. Bd3 {[%emt 0:02:17]} Ke7 {[%emt 0:00:21]} 31. f4 {[%emt 0:00:53]} Kd6 {[%emt 0:00:20]} 32. Kf2 {[%emt 0:00:56]} Kd5 {[%emt 0:00:25]} 33. Kf3 {[%emt 0:00:24]} Be7 {[%emt 0:02:06]} 34. a3 {[%emt 0:01:13]} Na4 {[%emt 0:00:50]} 35. Bxh7 {[%emt 0:02:53]} g6 {[%emt 0:00:15]} 36. f5 {[%emt 0:00:10]} g5 {[%emt 0:02:00]} 37. Bg8 {[%emt 0:00:25]} Ke5 {[%emt 0:00:55]} 38. Bxf7 {[%emt 0:00:13]} Kxf5 {[%emt 0:00:13]} 39. Nd3 {[%emt 0:00:43]} Bf6 {[%emt 0:01:09]} 40. g4# {[%emt 0:00:37] normal} 1-0

[Event "DVM U10 2019"]
[Site "Magedburg"]
[Date "2019.12.28"]
[Round "4"]
[White "Bartels, Jona Henrik"]
[Black "Gärtner, Alessandro"]
[Result "0-1"]
[ECO "B13"]
[WhiteElo "1211"]
[BlackElo "1251"]
[Annotator "NA"]
[PlyCount "70"]
[EventDate "2019.12.27"]
[EventType "team-tourn"]
[EventRounds "7"]
[EventCountry "GER"]
[SourceTitle "playchess.com"]
[Source "ChessBase"]
[SourceQuality "1"]
[TimeControl "3300+5"]

1. e4 {[%emt 0:00:00]} c6 {[%emt 0:00:01]} 2. d4 {[%emt 0:00:07]} d5 {[%emt 0:00:01]} 3. exd5 {[%emt 0:00:10]} cxd5 {[%emt 0:00:02]} 4. Bd3 {[%emt 0:00:15]} Nf6 {[%emt 0:00:12]} 5. h3 {[%emt 0:00:14]} Nc6 {[%emt 0:00:13]} 6. Nf3 {[%emt 0:00:32]} e6 {[%emt 0:00:29]} 7. Bf4 {[%emt 0:01:04]} Bd6 {[%emt 0:00:24]} 8. Qd2 {[%emt 0:00:23]} O-O {[%emt 0:01:23]} 9. Nc3 {[%emt 0:01:00]} a6 {[%emt 0:00:13]} 10. O-O {[%emt 0:00:25]} Re8 {[%emt 0:00:24]} 11. Rfe1 {[%emt 0:00:42]} h6 {[%emt 0:00:50]} 12. a3 {[%emt 0:04:40]} Qc7 {[%emt 0:02:30]} 13. Ne2 {[%emt 0:03:03]} Bd7 {[%emt 0:01:09]} 14. Bxh6 {[%emt 0:05:29]} gxh6 {[%emt 0:08:45]} 15. Qxh6 {[%emt 0:00:13]} Ne4 {[%emt 0:01:35]} 16. Bxe4 {[%emt 0:00:36]} dxe4 {[%emt 0:00:11]} 17. Ng5 {[%emt 0:00:09]} Bc8 {[%emt 0:00:41]} 18. Nc3 {[%emt 0:01:05]} f5 {[%emt 0:02:28]} 19. f3 {[%emt 0:01:27]} Qg7 {[%emt 0:01:53]} 20. Qxg7+ {[%emt 0:00:52]} Kxg7 {[%emt 0:00:05]} 21. d5 {[%emt 0:00:26]} Nd4 {[%emt 0:01:04]} 22. Rac1 {[%emt 0:00:19]} exf3 {[%emt 0:02:04]} 23. Nxf3 {[%emt 0:00:20]} Nxf3+ {[%emt 0:00:07]} 24. gxf3 {[%emt 0:00:03]} Bg3 {[%emt 0:01:04]} 25. Re2 {[%emt 0:00:44]} e5 {[%emt 0:00:25]} 26. Kg2 {[%emt 0:00:12]} Bh4 {[%emt 0:00:42]} 27. f4 {[%emt 0:00:10]} e4 {[%emt 0:00:17]} 28. Rd1 {[%emt 0:02:21]} Rg8 {[%emt 0:00:44]} 29. Kh2 {[%emt 0:01:24]} Bd7 {[%emt 0:01:19]} 30. d6 {[%emt 0:01:44]} Kf7 {[%emt 0:00:25]} 31. Re3 {[%emt 0:00:14]} Bf2 {[%emt 0:01:03]} 32. Re2 {[%emt 0:00:24]} e3 {[%emt 0:00:25]} 33. Nd5 {[%emt 0:00:12]} Rae8 {[%emt 0:01:07]} 34. c4 {[%emt 0:00:55]} Rg3 {[%emt 0:04:58]} 35. Rd3 {[%emt 0:01:36]} Rh8 {[%emt 0:00:12] normal} 0-1